[Event "FIDE Grand Swiss 2023"]
[Site "Villa Marina, Douglas, Isle of Man"]
[Date "2023.10.30"]
[Round "6.47"]
[White "Sadhwani, Raunak"]
[Black "Lazavik, Denis"]
[Result "1-0"]
[WhiteElo "2641"]
[BlackElo "2560"]
[EventDate "2023.10.25"]
[ECO "E05"]
[PlyCount "115"]
[BlackFideId "13515110"]
[TimeControl "40/100 + 20/50 + 15 + 30s/move"]
[WhiteFideId "35093487"]

1.d4 {[%clk 01:40:57] [%emt 00:00:02]} 1...Nf6 {[%clk 01:40:36] [%emt 00:00:24]} 
2.c4 {[%clk 01:41:22] [%emt 00:00:05]} 2...e6 {[%clk 01:40:42] [%emt 00:00:23]} 
3.Nf3 {[%clk 01:41:48] [%emt 00:00:05]} 3...d5 {[%clk 01:40:43] [%emt 00:00:29]} 
4.g3 {[%clk 01:42:14] [%emt 00:00:04]} 4...Be7 {[%clk 01:40:30] [%emt 00:00:42]} 
5.Bg2 {[%clk 01:42:41] [%emt 00:00:04]} 5...O-O {[%clk 01:40:43] [%emt
00:00:16]} 6.O-O {[%clk 01:43:07] [%emt 00:00:04]} 6...dxc4 {[%clk 01:40:52]
[%emt 00:00:21]} 7.Qc2 {[%clk 01:43:34] [%emt 00:00:05]} 7...a6 {[%clk 01:40:46]
[%emt 00:00:35]} 8.a4 {[%clk 01:43:59] [%emt 00:00:06]} 8...Bd7 {[%clk 01:40:55]
[%emt 00:00:19]} 9.Qxc4 {[%clk 01:44:08] [%emt 00:00:21]} 9...Bc6 {[%clk
01:40:57] [%emt 00:00:27]} 10.Bg5 {[%clk 01:44:28] [%emt 00:00:12]} 10...Nbd7 
{[%clk 01:40:51] [%emt 00:00:35]} 11.Nc3 {[%clk 01:44:35] [%emt 00:00:24]} 
11...h6 {[%clk 01:40:31] [%emt 00:00:49]} 12.Bf4 {[%clk 01:45:02] [%emt
00:00:03]} 12...a5 {[%clk 01:33:13] [%emt 00:07:48]} 13.Qb3 {[%clk 01:44:42]
[%emt 00:00:51]} 13...Bb4 {[%clk 01:24:03] [%emt 00:09:38]} 14.Rfd1 {[%clk
01:44:24] [%emt 00:00:49]} 14...Nb6 {[%clk 01:19:30] [%emt 00:05:02]} 15.Ne5 
{[%clk 01:44:37] [%emt 00:00:18]} 15...Bxg2 {[%clk 01:19:07] [%emt 00:00:54]} 
16.Kxg2 {[%clk 01:45:03] [%emt 00:00:04]} 16...Qe7 {[%clk 01:15:50] [%emt
00:03:46]} 17.Nd3 {[%clk 01:37:20] [%emt 00:08:14]} 17...Rfd8 {[%clk 01:08:56]
[%emt 00:07:23]} 18.Rac1 {[%clk 01:26:32] [%emt 00:11:19]} 18...Ne8 {[%clk
00:49:35] [%emt 00:19:50]} 19.Nc5 {[%clk 01:20:30] [%emt 00:06:32]} 19...Nd7 
{[%clk 00:37:58] [%emt 00:12:07]} 20.Nd3 {[%clk 01:18:54] [%emt 00:02:06]} 
20...Ndf6 {[%clk 00:36:40] [%emt 00:01:49]} 21.Be5 {[%clk 01:15:13] [%emt
00:04:10]} 21...c6 {[%clk 00:33:31] [%emt 00:03:39]} 22.Na2 {[%clk 01:11:24]
[%emt 00:04:19]} 22...Bd6 {[%clk 00:33:48] [%emt 00:00:13]} 23.e3 {[%clk
01:11:50] [%emt 00:00:05]} 23...Bxe5 {[%clk 00:31:35] [%emt 00:02:43]} 24.dxe5 
{[%clk 01:09:24] [%emt 00:02:56]} 24...Nh7 {[%clk 00:31:44] [%emt 00:00:20]} 
25.Nc3 {[%clk 01:06:55] [%emt 00:03:00]} 25...Nf8 {[%clk 00:29:31] [%emt
00:02:42]} 26.f4 {[%clk 01:01:34] [%emt 00:05:51]} 26...Qc7 {[%clk 00:27:29]
[%emt 00:02:32]} 27.h4 {[%clk 01:01:11] [%emt 00:00:54]} 27...Ng6 {[%clk
00:24:31] [%emt 00:03:27]} 28.Kf2 {[%clk 00:48:44] [%emt 00:12:57]} 28...Rac8 
{[%clk 00:20:24] [%emt 00:04:38]} 29.h5 {[%clk 00:41:34] [%emt 00:07:40]} 
29...Ne7 {[%clk 00:20:34] [%emt 00:00:19]} 30.g4 {[%clk 00:42:02] [%emt
00:00:03]} 30...b6 {[%clk 00:16:32] [%emt 00:04:31]} 31.Ne1 {[%clk 00:36:26]
[%emt 00:06:06]} 31...Rxd1 {[%clk 00:11:41] [%emt 00:05:21]} 32.Rxd1 {[%clk
00:35:01] [%emt 00:01:55]} 32...Rb8 {[%clk 00:11:59] [%emt 00:00:12]} 33.Ne4 
{[%clk 00:33:20] [%emt 00:02:12]} 33...b5 {[%clk 00:10:40] [%emt 00:01:49]} 
34.Nd3 {[%clk 00:32:35] [%emt 00:01:14]} 34...Nd5 {[%clk 00:08:41] [%emt
00:02:29]} 35.Qc2 {[%clk 00:31:02] [%emt 00:02:03]} 35...bxa4 {[%clk 00:07:28]
[%emt 00:01:43]} 36.Qxa4 {[%clk 00:30:19] [%emt 00:01:14]} 36...Qb6 {[%clk
00:06:00] [%emt 00:01:57]} 37.Re1 {[%clk 00:30:07] [%emt 00:00:43]} 37...Rd8 
{[%clk 00:05:06] [%emt 00:01:24]} 38.Kf3 {[%clk 00:27:33] [%emt 00:03:04]} 
38...Qb5 {[%clk 00:03:24] [%emt 00:02:12]} 39.Qc2 {[%clk 00:27:19] [%emt
00:00:44]} 39...c5 {[%clk 00:01:26] [%emt 00:02:29]} 40.Ndxc5 {[%clk 00:25:48]
[%emt 00:02:00]} 40...Rc8 {[%clk 00:01:39] [%emt 00:00:17]} 41.Rc1 {[%clk
00:20:01] [%emt 00:06:16]} 41...Qc6 {[%clk 00:48:16] [%emt 00:03:52]} 42.g5 
{[%clk 00:59:30] [%emt 00:11:03]} 42...hxg5 {[%clk 00:42:36] [%emt 00:06:09]} 
43.Nxg5 {[%clk 00:54:56] [%emt 00:05:04]} 43...Ne7+ {[%clk 00:42:01] [%emt
00:01:05]} 44.Qe4 {[%clk 00:54:28] [%emt 00:00:58]} 44...Nf5 {[%clk 00:42:14]
[%emt 00:00:17]} 45.Qxc6 {[%clk 00:50:17] [%emt 00:04:42]} 45...Rxc6 {[%clk
00:42:38] [%emt 00:00:05]} 46.Nge4 {[%clk 00:46:18] [%emt 00:04:29]} 46...Nc7 
{[%clk 00:42:37] [%emt 00:00:31]} 47.Ra1 {[%clk 00:46:29] [%emt 00:00:19]} 
47...Nh4+ {[%clk 00:34:53] [%emt 00:08:14]} 48.Ke2 {[%clk 00:46:09] [%emt
00:00:50]} 48...Rb6 {[%clk 00:35:09] [%emt 00:00:13]} 49.Nd3 {[%clk 00:45:32]
[%emt 00:01:08]} 49...Nf5 {[%clk 00:33:58] [%emt 00:01:41]} 50.Rxa5 {[%clk
00:44:33] [%emt 00:01:29]} 50...Rb8 {[%clk 00:34:19] [%emt 00:00:09]} 51.Nd6 
{[%clk 00:42:50] [%emt 00:02:14]} 51...Ng3+ {[%clk 00:34:40] [%emt 00:00:08]} 
52.Kf3 {[%clk 00:43:15] [%emt 00:00:04]} 52...Nxh5 {[%clk 00:35:06] [%emt
00:00:05]} 53.b4 {[%clk 00:43:13] [%emt 00:00:32]} 53...Nd5 {[%clk 00:34:24]
[%emt 00:01:12]} 54.b5 {[%clk 00:43:39] [%emt 00:00:05]} 54...f6 {[%clk
00:34:41] [%emt 00:00:12]} 55.e4 {[%clk 00:43:17] [%emt 00:00:52]} 55...Nc7 
{[%clk 00:34:33] [%emt 00:00:38]} 56.Kg4 {[%clk 00:41:30] [%emt 00:02:17]} 
56...g6 {[%clk 00:34:54] [%emt 00:00:09]} 57.Nc5 {[%clk 00:41:56] [%emt
00:00:04]} 57...fxe5 {[%clk 00:33:55] [%emt 00:01:28]} 58.fxe5 {[%clk 00:41:44]
[%emt 00:00:43]} 1-0

[Event "FIDE Grand Swiss 2023"]
[Site "Villa Marina, Douglas, Isle of Man"]
[Date "2023.10.30"]
[Round "6.48"]
[White "Mamedov, Rauf"]
[Black "Royal, Shreyas"]
[Result "1-0"]
[WhiteElo "2640"]
[BlackElo "2407"]
[EventDate "2023.10.25"]
[ECO "C77"]
[PlyCount "107"]
[BlackFideId "448869"]
[TimeControl "40/100 + 20/50 + 15 + 30s/move"]
[WhiteFideId "13401653"]

1.e4 {[%clk 01:40:49] [%emt 00:00:10]} 1...e5 {[%clk 01:40:45] [%emt 00:00:15]} 
2.Nf3 {[%clk 01:41:14] [%emt 00:00:06]} 2...Nc6 {[%clk 01:41:08] [%emt
00:00:07]} 3.Bb5 {[%clk 01:41:40] [%emt 00:00:05]} 3...a6 {[%clk 01:41:30] [%emt
00:00:07]} 4.Ba4 {[%clk 01:42:06] [%emt 00:00:04]} 4...Nf6 {[%clk 01:41:54]
[%emt 00:00:06]} 5.Nc3 {[%clk 01:42:33] [%emt 00:00:03]} 5...b5 {[%clk 01:40:36]
[%emt 00:01:48]} 6.Bb3 {[%clk 01:41:12] [%emt 00:01:51]} 6...Bc5 {[%clk
01:40:59] [%emt 00:00:07]} 7.a4 {[%clk 01:31:08] [%emt 00:10:34]} 7...Rb8 
{[%clk 01:37:57] [%emt 00:03:31]} 8.axb5 {[%clk 01:30:41] [%emt 00:00:57]} 
8...axb5 {[%clk 01:38:19] [%emt 00:00:08]} 9.Nd5 {[%clk 01:25:08] [%emt
00:06:04]} 9...O-O {[%clk 01:35:15] [%emt 00:03:34]} 10.d3 {[%clk 01:22:39]
[%emt 00:02:59]} 10...Nxd5 {[%clk 01:27:40] [%emt 00:08:04]} 11.Bxd5 {[%clk
01:21:58] [%emt 00:01:12]} 11...Ne7 {[%clk 01:14:49] [%emt 00:13:21]} 12.Bb3 
{[%clk 01:21:10] [%emt 00:01:18]} 12...Ng6 {[%clk 01:14:34] [%emt 00:00:45]} 
13.h4 {[%clk 01:16:02] [%emt 00:05:38]} 13...Qf6 {[%clk 01:06:45] [%emt
00:08:19]} 14.Bg5 {[%clk 00:52:01] [%emt 00:24:30]} 14...Qb6 {[%clk 01:06:57]
[%emt 00:00:19]} 15.Qd2 {[%clk 00:52:24] [%emt 00:00:07]} 15...h6 {[%clk
00:53:46] [%emt 00:13:41]} 16.h5 {[%clk 00:48:57] [%emt 00:03:57]} 16...Ne7 
{[%clk 00:42:07] [%emt 00:12:08]} 17.Bh4 {[%clk 00:32:33] [%emt 00:16:54]} 
17...Re8 {[%clk 00:38:39] [%emt 00:03:59]} 18.Nxe5 {[%clk 00:28:39] [%emt
00:04:24]} 18...d5 {[%clk 00:38:51] [%emt 00:00:17]} 19.O-O {[%clk 00:29:00]
[%emt 00:00:10]} 19...Nf5 {[%clk 00:25:28] [%emt 00:13:54]} 20.exf5 {[%clk
00:24:42] [%emt 00:04:47]} 20...Rxe5 {[%clk 00:25:56] [%emt 00:00:02]} 21.Rae1 
{[%clk 00:13:56] [%emt 00:11:16]} 21...Rxe1 {[%clk 00:23:55] [%emt 00:02:30]} 
22.Rxe1 {[%clk 00:14:22] [%emt 00:00:05]} 22...Bxf5 {[%clk 00:24:17] [%emt
00:00:08]} 23.Bxd5 {[%clk 00:14:41] [%emt 00:00:11]} 23...Qd6 {[%clk 00:21:43]
[%emt 00:03:04]} 24.Bb3 {[%clk 00:13:28] [%emt 00:01:43]} 24...Qd4 {[%clk
00:11:30] [%emt 00:10:43]} 25.Bg3 {[%clk 00:12:12] [%emt 00:01:45]} 25...Bd6 
{[%clk 00:10:07] [%emt 00:01:53]} 26.Bxd6 {[%clk 00:11:28] [%emt 00:01:15]} 
26...Qxd6 {[%clk 00:10:36] [%emt 00:00:01]} 27.Qe3 {[%clk 00:10:28] [%emt
00:01:30]} 27...Bg4 {[%clk 00:10:05] [%emt 00:01:01]} 28.Qe5 {[%clk 00:10:23]
[%emt 00:00:35]} 28...Kf8 {[%clk 00:09:39] [%emt 00:00:57]} 29.Qe4 {[%clk
00:07:44] [%emt 00:03:08]} 29...f5 {[%clk 00:09:01] [%emt 00:01:08]} 30.Qe5 
{[%clk 00:08:11] [%emt 00:00:03]} 30...Qxe5 {[%clk 00:06:37] [%emt 00:02:55]} 
31.Rxe5 {[%clk 00:08:36] [%emt 00:00:04]} 31...Re8 {[%clk 00:06:54] [%emt
00:00:13]} 32.Rxb5 {[%clk 00:08:55] [%emt 00:00:11]} 32...Re1+ {[%clk 00:07:19]
[%emt 00:00:05]} 33.Kh2 {[%clk 00:09:22] [%emt 00:00:03]} 33...Ke7 {[%clk
00:07:43] [%emt 00:00:06]} 34.f3 {[%clk 00:09:13] [%emt 00:00:39]} 34...Bxh5 
{[%clk 00:08:11] [%emt 00:00:02]} 35.Rxf5 {[%clk 00:09:38] [%emt 00:00:04]} 
35...Be8 {[%clk 00:08:13] [%emt 00:00:28]} 36.Rf4 {[%clk 00:09:56] [%emt
00:00:12]} 36...Rb1 {[%clk 00:06:38] [%emt 00:02:05]} 37.Re4+ {[%clk 00:08:40]
[%emt 00:01:46]} 37...Kd8 {[%clk 00:07:07] [%emt 00:00:02]} 38.Kg3 {[%clk
00:05:37] [%emt 00:03:33]} 38...g5 {[%clk 00:05:19] [%emt 00:02:17]} 39.Kf2 
{[%clk 00:05:38] [%emt 00:00:30]} 39...Bc6 {[%clk 00:04:18] [%emt 00:01:31]} 
40.Re6 {[%clk 00:02:36] [%emt 00:03:31]} 40...Bb5 {[%clk 00:04:43] [%emt
00:00:05]} 41.Ke2 {[%clk 00:02:23] [%emt 00:00:43]} 41...Rh1 {[%clk 00:03:03]
[%emt 00:02:10]} 42.Re5 {[%clk 00:50:01] [%emt 00:02:53]} 42...Bc6 {[%clk
00:52:26] [%emt 00:01:06]} 43.Bd5 {[%clk 00:49:03] [%emt 00:01:28]} 43...Be8 
{[%clk 00:52:15] [%emt 00:00:41]} 44.Be4 {[%clk 00:48:48] [%emt 00:00:45]} 
44...Bf7 {[%clk 00:52:31] [%emt 00:00:15]} 45.b3 {[%clk 00:44:20] [%emt
00:04:58]} 45...Kd7 {[%clk 00:52:30] [%emt 00:00:30]} 46.Ra5 {[%clk 00:43:47]
[%emt 00:01:03]} 46...Rc1 {[%clk 00:51:27] [%emt 00:01:33]} 47.Kd2 {[%clk
00:43:37] [%emt 00:00:41]} 47...Rg1 {[%clk 00:49:47] [%emt 00:02:10]} 48.g4 
{[%clk 00:43:52] [%emt 00:00:15]} 48...Rh1 {[%clk 00:50:01] [%emt 00:00:16]} 
49.c4 {[%clk 00:44:02] [%emt 00:00:20]} 49...Kd6 {[%clk 00:49:59] [%emt
00:00:32]} 50.b4 {[%clk 00:44:16] [%emt 00:00:15]} 50...Be6 {[%clk 00:49:29]
[%emt 00:01:00]} 51.Kc3 {[%clk 00:44:32] [%emt 00:00:15]} 51...Rh2 {[%clk
00:49:53] [%emt 00:00:06]} 52.Kd4 {[%clk 00:44:54] [%emt 00:00:08]} 52...Rb2 
{[%clk 00:50:00] [%emt 00:00:22]} 53.Ra6+ {[%clk 00:45:16] [%emt 00:00:09]} 
53...Ke7 {[%clk 00:50:26] [%emt 00:00:04]} 54.Ke5 {[%clk 00:45:33] [%emt
00:00:13]} 1-0

[Event "FIDE Grand Swiss 2023"]
[Site "Villa Marina, Douglas, Isle of Man"]
[Date "2023.10.30"]
[Round "6.49"]
[White "Vokhidov, Shamsiddin"]
[Black "Warmerdam, Max"]
[Result "1/2-1/2"]
[WhiteElo "2578"]
[BlackElo "2636"]
[EventDate "2023.10.25"]
[ECO "C92"]
[PlyCount "69"]
[BlackFideId "1048104"]
[TimeControl "40/100 + 20/50 + 15 + 30s/move"]
[WhiteFideId "14204223"]

1.e4 {[%clk 01:40:57] [%emt 00:00:03]} 1...e5 {[%clk 01:40:53] [%emt 00:00:07]} 
2.Nf3 {[%clk 01:41:14] [%emt 00:00:13]} 2...Nc6 {[%clk 01:41:17] [%emt
00:00:06]} 3.Bb5 {[%clk 01:41:33] [%emt 00:00:11]} 3...a6 {[%clk 01:41:41] [%emt
00:00:06]} 4.Ba4 {[%clk 01:41:59] [%emt 00:00:04]} 4...Nf6 {[%clk 01:42:06]
[%emt 00:00:05]} 5.O-O {[%clk 01:42:23] [%emt 00:00:06]} 5...Be7 {[%clk
01:42:32] [%emt 00:00:04]} 6.Re1 {[%clk 01:42:41] [%emt 00:00:12]} 6...b5 
{[%clk 01:42:55] [%emt 00:00:07]} 7.Bb3 {[%clk 01:43:09] [%emt 00:00:02]} 
7...d6 {[%clk 01:43:19] [%emt 00:00:06]} 8.c3 {[%clk 01:43:35] [%emt 00:00:04]} 
8...O-O {[%clk 01:43:42] [%emt 00:00:06]} 9.h3 {[%clk 01:44:03] [%emt 00:00:03]} 
9...Bb7 {[%clk 01:44:04] [%emt 00:00:08]} 10.d4 {[%clk 01:44:30] [%emt
00:00:03]} 10...Re8 {[%clk 01:44:27] [%emt 00:00:06]} 11.Nbd2 {[%clk 01:44:58]
[%emt 00:00:02]} 11...Bf8 {[%clk 01:44:49] [%emt 00:00:08]} 12.a3 {[%clk
01:45:27] [%emt 00:00:03]} 12...h6 {[%clk 01:44:57] [%emt 00:00:21]} 13.Bc2 
{[%clk 01:45:47] [%emt 00:00:09]} 13...Nb8 {[%clk 01:45:20] [%emt 00:00:07]} 
14.b3 {[%clk 01:46:13] [%emt 00:00:04]} 14...Nbd7 {[%clk 01:45:41] [%emt
00:00:10]} 15.Bb2 {[%clk 01:46:29] [%emt 00:00:15]} 15...g6 {[%clk 01:46:04]
[%emt 00:00:06]} 16.Bd3 {[%clk 01:42:51] [%emt 00:04:08]} 16...Bg7 {[%clk
01:45:24] [%emt 00:01:10]} 17.dxe5 {[%clk 01:42:28] [%emt 00:00:54]} 17...dxe5 
{[%clk 01:45:05] [%emt 00:00:49]} 18.c4 {[%clk 01:39:49] [%emt 00:03:09]} 
18...Nc5 {[%clk 01:44:00] [%emt 00:01:34]} 19.Bc2 {[%clk 01:36:34] [%emt
00:03:45]} 19...Nh5 {[%clk 01:42:55] [%emt 00:01:35]} 20.cxb5 {[%clk 01:23:21]
[%emt 00:13:44]} 20...axb5 {[%clk 01:38:39] [%emt 00:04:45]} 21.b4 {[%clk
01:23:06] [%emt 00:00:45]} 21...Nd3 {[%clk 01:38:57] [%emt 00:00:12]} 22.Bxd3 
{[%clk 01:23:24] [%emt 00:00:11]} 22...Qxd3 {[%clk 01:39:21] [%emt 00:00:05]} 
23.Nb3 {[%clk 01:10:21] [%emt 00:13:35]} 23...Bxe4 {[%clk 01:29:30] [%emt
00:10:20]} 24.Qxd3 {[%clk 01:10:10] [%emt 00:00:41]} 24...Bxd3 {[%clk 01:29:55]
[%emt 00:00:05]} 25.Bxe5 {[%clk 01:10:29] [%emt 00:00:12]} 25...Nf6 {[%clk
01:14:17] [%emt 00:16:07]} 26.Nfd4 {[%clk 00:53:41] [%emt 00:17:18]} 26...Nd5 
{[%clk 00:57:19] [%emt 00:17:28]} 27.Bxg7 {[%clk 00:53:41] [%emt 00:00:30]} 
27...Rxe1+ {[%clk 00:54:57] [%emt 00:02:52]} 28.Rxe1 {[%clk 00:54:08] [%emt
00:00:03]} 28...Kxg7 {[%clk 00:55:21] [%emt 00:00:06]} 29.Re5 {[%clk 00:44:17]
[%emt 00:10:20]} 29...Nb6 {[%clk 00:34:47] [%emt 00:21:05]} 30.Na5 {[%clk
00:37:50] [%emt 00:06:58]} 30...Rd8 {[%clk 00:31:40] [%emt 00:03:36]} 31.Nxb5 
{[%clk 00:31:26] [%emt 00:06:55]} 31...Bxb5 {[%clk 00:32:04] [%emt 00:00:05]} 
32.Rxb5 {[%clk 00:31:47] [%emt 00:00:09]} 32...Rd3 {[%clk 00:32:29] [%emt
00:00:04]} 33.Rc5 {[%clk 00:31:32] [%emt 00:00:46]} 33...Rxa3 {[%clk 00:32:54]
[%emt 00:00:05]} 34.Rxc7 {[%clk 00:31:53] [%emt 00:00:09]} 34...Nd5 {[%clk
00:33:11] [%emt 00:00:13]} 35.Rb7 {[%clk 00:32:14] [%emt 00:00:09]} 1/2-1/2

[Event "FIDE Grand Swiss 2023"]
[Site "Villa Marina, Douglas, Isle of Man"]
[Date "2023.10.30"]
[Round "6.50"]
[White "Parligras, Mircea-Emilian"]
[Black "Donchenko, Alexander"]
[Result "1/2-1/2"]
[WhiteElo "2561"]
[BlackElo "2676"]
[EventDate "2023.10.25"]
[ECO "D38"]
[PlyCount "65"]
[BlackFideId "24603295"]
[TimeControl "40/100 + 20/50 + 15 + 30s/move"]
[WhiteFideId "1204297"]

1.d4 {[%clk 01:40:56] [%emt 00:00:02]} 1...Nf6 {[%clk 01:40:55] [%emt 00:00:06]} 
2.c4 {[%clk 01:41:20] [%emt 00:00:06]} 2...e6 {[%clk 01:41:21] [%emt 00:00:05]} 
3.Nf3 {[%clk 01:41:46] [%emt 00:00:04]} 3...d5 {[%clk 01:41:46] [%emt 00:00:05]} 
4.Nc3 {[%clk 01:41:52] [%emt 00:00:23]} 4...Bb4 {[%clk 01:42:09] [%emt
00:00:07]} 5.Qb3 {[%clk 01:39:42] [%emt 00:02:40]} 5...a5 {[%clk 01:42:25] [%emt
00:00:15]} 6.Bg5 {[%clk 01:39:52] [%emt 00:00:19]} 6...c5 {[%clk 01:42:10] [%emt
00:00:45]} 7.dxc5 {[%clk 01:39:48] [%emt 00:00:34]} 7...Na6 {[%clk 01:37:00]
[%emt 00:05:40]} 8.a3 {[%clk 01:39:43] [%emt 00:00:36]} 8...Nxc5 {[%clk
01:36:59] [%emt 00:00:30]} 9.Qc2 {[%clk 01:40:07] [%emt 00:00:06]} 9...Bxc3+ 
{[%clk 01:35:17] [%emt 00:02:12]} 10.Qxc3 {[%clk 01:40:32] [%emt 00:00:06]} 
10...dxc4 {[%clk 01:29:09] [%emt 00:06:37]} 11.Qxc4 {[%clk 01:40:29] [%emt
00:00:33]} 11...Nce4 {[%clk 01:28:46] [%emt 00:00:54]} 12.Bxf6 {[%clk 01:39:07]
[%emt 00:01:52]} 12...Nxf6 {[%clk 01:29:09] [%emt 00:00:06]} 13.g3 {[%clk
01:37:51] [%emt 00:01:46]} 13...a4 {[%clk 01:29:12] [%emt 00:00:28]} 14.Qb4 
{[%clk 01:17:18] [%emt 00:21:02]} 14...Qa5 {[%clk 01:18:41] [%emt 00:11:02]} 
15.Bg2 {[%clk 01:11:16] [%emt 00:06:32]} 15...Qxb4+ {[%clk 01:17:20] [%emt
00:01:51]} 16.axb4 {[%clk 01:10:36] [%emt 00:01:09]} 16...Ke7 {[%clk 01:12:51]
[%emt 00:05:00]} 17.Ne5 {[%clk 00:52:56] [%emt 00:18:09]} 17...Rd8 {[%clk
01:06:39] [%emt 00:06:42]} 18.Nc4 {[%clk 00:49:08] [%emt 00:04:18]} 18...Nd5 
{[%clk 01:01:22] [%emt 00:05:47]} 19.O-O {[%clk 00:39:15] [%emt 00:10:23]} 
19...Nxb4 {[%clk 00:50:23] [%emt 00:11:29]} 20.Nb6 {[%clk 00:37:14] [%emt
00:02:31]} 20...Ra5 {[%clk 00:40:51] [%emt 00:10:03]} 21.Rfc1 {[%clk 00:31:37]
[%emt 00:06:07]} 21...Bd7 {[%clk 00:29:27] [%emt 00:11:54]} 22.Rc7 {[%clk
00:30:13] [%emt 00:01:54]} 22...Na6 {[%clk 00:18:12] [%emt 00:11:45]} 23.Rxb7 
{[%clk 00:29:42] [%emt 00:01:01]} 23...Nc5 {[%clk 00:18:33] [%emt 00:00:09]} 
24.Rc7 {[%clk 00:29:46] [%emt 00:00:25]} 24...Ra6 {[%clk 00:17:12] [%emt
00:01:51]} 25.Nxd7 {[%clk 00:25:24] [%emt 00:04:53]} 25...Nxd7 {[%clk 00:17:33]
[%emt 00:00:09]} 26.b4 {[%clk 00:15:14] [%emt 00:10:40]} 26...Kd6 {[%clk
00:03:23] [%emt 00:14:40]} 27.Rc3 {[%clk 00:11:03] [%emt 00:04:41]} 27...Rb8 
{[%clk 00:00:35] [%emt 00:03:18]} 28.b5 {[%clk 00:06:55] [%emt 00:04:38]} 
28...Ra7 {[%clk 00:01:05]} 29.Rc6+ {[%clk 00:04:15] [%emt 00:03:09]} 29...Ke7 
{[%clk 00:01:28] [%emt 00:00:07]} 30.Ra6 {[%clk 00:04:25] [%emt 00:00:21]} 
30...Rc7 {[%clk 00:01:48] [%emt 00:00:10]} 31.R6xa4 {[%clk 00:03:15] [%emt
00:01:39]} 31...Rxb5 {[%clk 00:02:10] [%emt 00:00:08]} 32.Bf3 {[%clk 00:03:33]
[%emt 00:00:11]} 32...Rbc5 {[%clk 00:02:17] [%emt 00:00:23]} 33.h4 {[%clk
00:03:38] [%emt 00:00:24]} 1/2-1/2